Workbook

Sheet nelson
A1: Time | B1: SOG (Speed Over Ground) | C1: COG (Course Over Ground) | D1: 10-min average SOG | E1: 10-min average COG | F1: 10-min average Wind Speed | G1: 10-min average Wind Direction | H1: 10-min average True Wind Angle
A2: 19:53:00 | B2: 7 | C2: 123
A3: 19:54:00 | B3: 8.1 | C3: 119
A4: 19:55:00 | B4: 9.2 | C4: 110
A5: 19:56:00 | B5: 11.9 | C5: 98
A6: 19:57:00 | B6: 12.4 | C6: 100
A7: 19:58:00 | B7: 13.5 | C7: 91
A8: 19:59:00 | B8: 14.6 | C8: 98
A9: 20:00:00 | B9: 11.9 | C9: 97 | D9: =AVERAGE(B2:B9) -> 11.075 | E9: =AVERAGE(C2:C9) -> 104.5 | F9: 11.56587472 | G9: 207 | H9: =G9-E9 -> 102.5
A10: 20:01:00 | B10: 12.4 | C10: 99
A11: 20:02:00 | B11: 10.8 | C11: 108
A12: 20:03:00 | B12: 13 | C12: 102
A13: 20:04:00 | B13: 13.5 | C13: 96
A14: 20:05:00 | B14: 13.5 | C14: 106
A15: 20:06:00 | B15: 8.6 | C15: 105
A16: 20:07:00 | B16: 8.6 | C16: 126
A17: 20:08:00 | B17: 8.6 | C17: 111
A18: 20:09:00 | B18: 12.4 | C18: 99
A19: 20:10:00 | B19: 11.9 | C19: 99 | D19: =AVERAGE(B10:B19) -> 11.33 | E19: =AVERAGE(C10:C19) -> 105.1 | F19: 12.19762417 | G19: 208 | H19: =G19-E19 -> 102.9
A20: 20:11:00 | B20: 8.1 | C20: 111
A21: 20:12:00 | B21: 11.3 | C21: 98
A22: 20:13:00 | B22: 11.3 | C22: 102 | I22: Keszthely-Györök átlag | J22: =AVERAGE(B2:B22) -> 11.07619048
A23: 20:14:00 | B23: 9.7 | C23: 88
A24: 20:15:00 | B24: 9.2 | C24: 96
A25: 20:16:00 | B25: 8.1 | C25: 91
A26: 20:17:00 | B26: 8.1 | C26: 93
A27: 20:18:00 | B27: 8.1 | C27: 93
A28: 20:19:00 | B28: 8.6 | C28: 80
A29: 20:20:00 | B29: 5.9 | C29: 72 | D29: =AVERAGE(B20:B29) -> 8.84 | E29: =AVERAGE(C20:C29) -> 92.4 | F29: 14.14146866 | G29: 209 | H29: =G29-E29 -> 116.6
A30: 20:21:00 | B30: 8.1 | C30: 75
A31: 20:22:00 | B31: 11.3 | C31: 81
A32: 20:23:00 | B32: 9.7 | C32: 82
A33: 20:24:00 | B33: 8.6 | C33: 83
A34: 20:25:00 | B34: 12.4 | C34: 74
A35: 20:26:00 | B35: 12.4 | C35: 74
A36: 20:27:00 | B36: 11.9 | C36: 75
A37: 20:28:00 | B37: 12.4 | C37: 67
A38: 20:29:00 | B38: 12.4 | C38: 69
A39: 20:30:00 | B39: 10.8 | C39: 69 | D39: =AVERAGE(B30:B39) -> 11 | E39: =AVERAGE(C30:C39) -> 74.9 | F39: 18.20734339 | G39: 220.3333333 | H39: =G39-E39 -> 145.4333333
A40: 20:31:00 | B40: 15.1 | C40: 65
A41: 20:32:00 | B41: 11.3 | C41: 67
A42: 20:33:00 | B42: 11.9 | C42: 79
A43: 20:34:00 | B43: 16.7 | C43: 65
A44: 20:35:00 | B44: 15.1 | C44: 69
A45: 20:36:00 | B45: 16.7 | C45: 71
A46: 20:37:00 | B46: 16.2 | C46: 68
A47: 20:38:00 | B47: 16.2 | C47: 70
A48: 20:39:00 | B48: 16.2 | C48: 68
A49: 20:40:00 | B49: 15.1 | C49: 67 | D49: =AVERAGE(B40:B49) -> 15.05 | E49: =AVERAGE(C40:C49) -> 68.9 | F49: 19.63282935 | G49: 222 | H49: =G49-E49 -> 153.1
A50: 20:41:00 | B50: 17.3 | C50: 69
A51: 20:42:00 | B51: 18.3 | C51: 70
A52: 20:43:00 | B52: 15.1 | C52: 69
A53: 20:44:00 | B53: 14.6 | C53: 74
A54: 20:45:00 | B54: 15.1 | C54: 60
A55: 20:46:00 | B55: 14.6 | C55: 69 | I55: Badacsony
A56: 20:47:00 | B56: 14.6 | C56: 68
A57: 20:48:00 | B57: 14.6 | C57: 67
A58: 20:49:00 | B58: 14.6 | C58: 74
A59: 20:50:00 | B59: 14.6 | C59: 65 | D59: =AVERAGE(B50:B59) -> 15.34 | E59: =AVERAGE(C50:C59) -> 68.5 | F59: 18.85529155 | G59: 219 | H59: =G59-E59 -> 150.5
A60: 20:51:00 | B60: 14.6 | C60: 65
A61: 20:52:00 | B61: 14.6 | C61: 64
A62: 20:53:00 | B62: 2.7 | C62: 109 | I62: borulás
A63: 20:54:00 | B63: 7 | C63: 64
A64: 20:55:00 | B64: 8.6 | C64: 60
A65: 20:56:00 | B65: 13.5 | C65: 65
A66: 20:57:00 | B66: 14 | C66: 74
A67: 20:58:00 | B67: 12.4 | C67: 62
A68: 20:59:00 | B68: 9.7 | C68: 70
A69: 21:00:00 | B69: 11.9 | C69: 62 | D69: =AVERAGE(B60:B69) -> 10.9 | E69: =AVERAGE(C60:C69) -> 69.5 | F69: 19.60043194 | G69: 217.6666667 | H69: =G69-E69 -> 148.1666667
A70: 21:01:00 | B70: 15.7 | C70: 68
A71: 21:02:00 | B71: 11.9 | C71: 69
A72: 21:03:00 | B72: 13 | C72: 68
A73: 21:04:00 | B73: 15.1 | C73: 68
A74: 21:05:00 | B74: 15.1 | C74: 64
A75: 21:06:00 | B75: 13 | C75: 64
A76: 21:07:00 | B76: 13.5 | C76: 75
A77: 21:08:00 | B77: 12.4 | C77: 70
A78: 21:09:00 | B78: 14.6 | C78: 64
A79: 21:10:00 | B79: 14.6 | C79: 74 | D79: =AVERAGE(B70:B79) -> 13.89 | E79: =AVERAGE(C70:C79) -> 68.4 | F79: 15.91522676 | G79: 227 | H79: =G79-E79 -> 158.6
A80: 21:11:00 | B80: 12.4 | C80: 70
A81: 21:12:00 | B81: 11.9 | C81: 61
A82: 21:13:00 | B82: 13.5 | C82: 70
A83: 21:14:00 | B83: 13 | C83: 75
A84: 21:15:00 | B84: 10.8 | C84: 67
A85: 21:16:00 | B85: 13.5 | C85: 62
A86: 21:17:00 | B86: 14.6 | C86: 72
A87: 21:18:00 | B87: 13.5 | C87: 70
A88: 21:19:00 | B88: 14.6 | C88: 62
A89: 21:20:00 | B89: 14 | C89: 59 | D89: =AVERAGE(B80:B89) -> 13.18 | E89: =AVERAGE(C80:C89) -> 66.8 | F89: 16.25539955 | G89: 226.75 | H89: =G89-E89 -> 159.95
A90: 21:21:00 | B90: 14 | C90: 63
A91: 21:22:00 | B91: 12.4 | C91: 61
A92: 21:23:00 | B92: 12.4 | C92: 56
A93: 21:24:00 | B93: 14 | C93: 59
A94: 21:25:00 | B94: 13.5 | C94: 62
A95: 21:26:00 | B95: 13.5 | C95: 64
A96: 21:27:00 | B96: 16.7 | C96: 57
A97: 21:28:00 | B97: 14 | C97: 70
A98: 21:29:00 | B98: 13.5 | C98: 65
A99: 21:30:00 | B99: 14 | C99: 68 | D99: =AVERAGE(B90:B99) -> 13.8 | E99: =AVERAGE(C90:C99) -> 62.5 | F99: 15.16198702 | G99: 223.25 | H99: =G99-E99 -> 160.75
A100: 21:31:00 | B100: 10.8 | C100: 67
A101: 21:32:00 | B101: 13 | C101: 64
A102: 21:33:00 | B102: 14 | C102: 72
A103: 21:34:00 | B103: 13.5 | C103: 69
A104: 21:35:00 | B104: 12.4 | C104: 65
A105: 21:36:00 | B105: 12.4 | C105: 68
A106: 21:37:00 | B106: 13.5 | C106: 70
A107: 21:38:00 | B107: 9.7 | C107: 65
A108: 21:39:00 | B108: 9.7 | C108: 72
A109: 21:40:00 | B109: 11.9 | C109: 69 | D109: =AVERAGE(B100:B109) -> 12.09 | E109: =AVERAGE(C100:C109) -> 68.1 | F109: 14.26295895 | G109: 222 | H109: =G109-E109 -> 153.9
A110: 21:41:00 | B110: 13 | C110: 71
A111: 21:42:00 | B111: 11.9 | C111: 74
A112: 21:43:00 | B112: 13 | C112: 73
A113: 21:44:00 | B113: 14 | C113: 72
A114: 21:45:00 | B114: 14 | C114: 68
A115: 21:46:00 | B115: 11.3 | C115: 70
A116: 21:47:00 | B116: 12.4 | C116: 68
A117: 21:48:00 | B117: 12.4 | C117: 63
A118: 21:49:00 | B118: 12.4 | C118: 67
A119: 21:50:00 | B119: 11.3 | C119: 65 | D119: =AVERAGE(B110:B119) -> 12.57 | E119: =AVERAGE(C110:C119) -> 69.1 | F119: 15.69654426 | G119: 222.5 | H119: =G119-E119 -> 153.4
A120: 21:51:00 | B120: 13.5 | C120: 58
A121: 21:52:00 | B121: 4.9 | C121: 88 | I121: luvolás
A122: 21:53:00 | B122: 14 | C122: 64
A123: 21:54:00 | B123: 14 | C123: 65
A124: 21:55:00 | B124: 11.9 | C124: 60
A125: 21:56:00 | B125: 13 | C125: 57
A126: 21:57:00 | B126: 13 | C126: 67
A127: 21:58:00 | B127: 10.8 | C127: 58
A128: 21:59:00 | B128: 12.4 | C128: 53
A129: 22:00:00 | B129: 14 | C129: 63 | D129: =AVERAGE(B120:B129) -> 12.15 | E129: =AVERAGE(C120:C129) -> 63.3 | F129: 14.57883368 | G129: 219.5 | H129: =G129-E129 -> 156.2
A130: 22:01:00 | B130: 14.6 | C130: 61
A131: 22:02:00 | B131: 14.6 | C131: 57
A132: 22:03:00 | B132: 9.7 | C132: 52
A133: 22:04:00 | B133: 15.1 | C133: 55
A134: 22:05:00 | B134: 12.4 | C134: 57
A135: 22:06:00 | B135: 4.3 | C135: 82
A136: 22:07:00 | B136: 8.6 | C136: 52
A137: 22:08:00 | B137: 12.4 | C137: 54 | I137: Györök-Tihany átlag | J137: =AVERAGE(B53:B137) -> 12.70823529
A138: 22:09:00 | B138: 9.7 | C138: 48
A139: 22:10:00 | B139: 2.7 | C139: 331 | D139: =AVERAGE(B130:B139) -> 10.41 | E139: =AVERAGE(C130:C138) -> 57.55555556 | F139: 13.41252698 | G139: 221.5 | H139: =G139-E139 -> 163.9444444 | I139: halz és luvolás
A140: 22:11:00 | B140: 8.1 | C140: 39
A141: 22:12:00 | B141: 8.1 | C141: 37
A142: 22:13:00 | B142: 10.8 | C142: 12
A143: 22:14:00 | B143: 8.6 | C143: 24
A144: 22:15:00 | B144: 10.8 | C144: 12
A145: 22:16:00 | B145: 10.8 | C145: 9
A146: 22:17:00 | B146: 8.6 | C146: 14
A147: 22:18:00 | B147: 8.6 | C147: 8
A148: 22:19:00 | B148: 8.1 | C148: 19
A149: 22:20:00 | B149: 10.8 | C149: 19 | D149: =AVERAGE(B140:B149) -> 9.33 | E149: =AVERAGE(C140:C149) -> 19.3 | F149: 19.21976239 | G149: 219 | H149: =360-G149+E149 -> 160.3
A150: 22:21:00 | B150: 11.9 | C150: 9
A151: 22:22:00 | B151: 11.9 | C151: 16
A152: 22:23:00 | B152: 10.8 | C152: 9
A153: 22:24:00 | B153: 11.9 | C153: 18
A154: 22:25:00 | B154: 11.9 | C154: 7
A155: 22:26:00 | B155: 9.7 | C155: 13
A156: 22:27:00 | B156: 10.3 | C156: 5
A157: 22:28:00 | B157: 10.8 | C157: 9
A158: 22:29:00 | B158: 9.7 | C158: 19
A159: 22:30:00 | B159: 5.9 | C159: 114 | D159: =AVERAGE(B150:B159) -> 10.48 | E159: =AVERAGE(C150:C158) -> 11.66666667 | F159: 18.10205181 | G159: 219.75 | H159: =360-G159+E159 -> 151.9166667 | I159: Csopak, halz
A160: 22:31:00 | B160: 11.9 | C160: 64
A161: 22:32:00 | B161: 8.1 | C161: 70
A162: 22:33:00 | B162: 10.3 | C162: 70
A163: 22:34:00 | B163: 8.1 | C163: 75
A164: 22:35:00 | B164: 11.3 | C164: 70
A165: 22:36:00 | B165: 11.3 | C165: 81
A166: 22:37:00 | B166: 9.2 | C166: 67
A167: 22:38:00 | B167: 11.9 | C167: 81
A168: 22:39:00 | B168: 11.9 | C168: 79
A169: 22:40:00 | B169: 12.4 | C169: 81 | D169: =AVERAGE(B160:B169) -> 10.64 | E169: =AVERAGE(C160:C169) -> 73.8 | F169: 19.80291574 | G169: 222.5 | H169: =G169-E169 -> 148.7
A170: 22:41:00 | B170: 11.3 | C170: 85
A171: 22:42:00 | B171: 9.7 | C171: 86
A172: 22:43:00 | B172: 11.9 | C172: 76
A173: 22:44:00 | B173: 13.5 | C173: 82
A174: 22:45:00 | B174: 15.7 | C174: 77
A175: 22:46:00 | B175: 9.2 | C175: 77
A176: 22:47:00 | B176: 15.1 | C176: 82
A177: 22:48:00 | B177: 12.4 | C177: 79
A178: 22:49:00 | B178: 13 | C178: 86
A179: 22:50:00 | B179: 12.4 | C179: 87 | D179: =AVERAGE(B170:B179) -> 12.42 | E179: =AVERAGE(C170:C179) -> 81.7 | F179: 19.07397406 | G179: 223.75 | H179: =G179-E179 -> 142.05
A180: 22:51:00 | B180: 10.8 | C180: 78
A181: 22:52:00 | B181: 10.3 | C181: 81
A182: 22:53:00 | B182: 13 | C182: 88
A183: 22:54:00 | B183: 13 | C183: 88
A184: 22:55:00 | B184: 9.7 | C184: 103
A185: 22:56:00 | B185: 9.7 | C185: 89
A186: 22:57:00 | B186: 11.9 | C186: 87
A187: 22:58:00 | B187: 11.3 | C187: 88
A188: 22:59:00 | B188: 11.3 | C188: 82
A189: 23:00:00 | B189: 9.2 | C189: 12 | D189: =AVERAGE(B180:B189) -> 11.02 | E189: =AVERAGE(C180:C189) -> 79.6 | F189: 19.31695462 | G189: 225 | H189: =G189-E189 -> 145.4 | I189: halz
A190: 23:01:00 | B190: 11.3 | C190: 19
A191: 23:02:00 | B191: 8.1 | C191: 21
A192: 23:03:00 | B192: 9.7 | C192: 24
A193: 23:04:00 | B193: 9.2 | C193: 12
A194: 23:05:00 | B194: 11.9 | C194: 16
A195: 23:06:00 | B195: 8.6 | C195: 12
A196: 23:07:00 | B196: 10.3 | C196: 26
A197: 23:08:00 | B197: 8.6 | C197: 22
A198: 23:09:00 | B198: 10.3 | C198: 14
A199: 23:10:00 | B199: 8.6 | C199: 5 | D199: =AVERAGE(B190:B199) -> 9.66 | E199: =AVERAGE(C190:C199) -> 17.1 | F199: 20.87203021 | G199: 225 | H199: =360-G199+E199 -> 152.1
A200: 23:11:00 | B200: 9.2 | C200: 7
... 24 more rows

Sheet grafikon
